[Event "4NCL Div 1 2018-19"]
[Site "Daventry"]
[Date "2019.01.13"]
[Round "4"]
[White "Maroroa, Sue"]
[Black "Lauterbach, Ingrid"]
[Result "0-1"]
[ECO "C41"]
[WhiteElo "2120"]
[BlackElo "2057"]
[Annotator "NA"]
[PlyCount "66"]
[EventDate "2019.01.12"]
[EventCountry "GBR"]
[SourceTitle "playchess.com"]
[Source "ChessBase"]
[SourceQuality "1"]
[TimeControl "40"]

1. e4 {[%emt 0:00:00]} e5 {[%emt 0:00:00]} 2. Nf3 {[%emt 0:00:00]} d6 {[%emt 0:00:00]} 3. d4 {[%emt 0:00:00]} Nd7 {[%emt 0:00:00]} 4. Nc3 {[%emt 0:00:00]} Be7 {[%emt 0:00:00]} 5. Bc4 {[%emt 0:00:00]} Ngf6 {[%emt 0:00:00]} 6. Bxf7+ {[%emt 0:00:00]} Kxf7 {[%emt 0:00:00]} 7. Ng5+ {[%emt 0:00:00]} Kg8 {[%emt 0:00:00]} 8. Ne6 {[%emt 0:00:00]} Qe8 {[%emt 0:00:00]} 9. Nxc7 {[%emt 0:00:00]} Qg6 {[%emt 0:00:00]} 10. Nxa8 {[%emt 0:00:00]} Qxg2 {[%emt 0:00:00]} 11. Rf1 {[%emt 0:00:00]} exd4 {[%emt 0:20:49]} 12. Qe2 {[%emt 0:01:35]} Ne5 {[%emt 0:00:37]} 13. f4 {[%emt 0:00:00]} Qxe2+ 14. Nxe2 {[%emt 0:00:00]} Neg4 15. h3 {[%emt 0:08:45]} Nxe4 {[%emt 0:00:00]} 16. Nxd4 {[%emt 0:00:00]} Bh4+ {[%emt 0:00:00]} 17. Kd1 {[%emt 0:00:00]} Ngf2+ {[%emt 0:00:00]} 18. Ke2 {[%emt 0:00:00]} Nxh3 {[%emt 0:00:00]} 19. Ke3 {[%emt 0:00:00]} Ng3 {[%emt 0:00:00]} 20. Rd1 {[%emt 0:00:00]} Bg4 {[%emt 0:00:00]} 21. Bd2 {[%emt 0:00:00]} Kf7 {[%emt 0:00:00]} 22. Nc7 {[%emt 0:00:00]} Rc8 {[%emt 0:00:00]} 23. Ncb5 {[%emt 0:00:00]} Re8+ {[%emt 0:00:00]} 24. Kd3 {[%emt 0:00:00]} Nf2+ {[%emt 0:00:00]} 25. Kc4 {[%emt 0:00:00]} Nxd1 {[%emt 0:00:00]} 26. Nxd6+ {[%emt 0:00:00]} Ke7 {[%emt 0:00:00]} 27. Nxe8 {[%emt 0:00:00]} Kxe8 {[%emt 0:00:00]} 28. Bc3 {[%emt 0:00:00]} Bf6 {[%emt 0:00:00]} 29. a4 {[%emt 0:00:00]} Nxc3 {[%emt 0:00:00]} 30. bxc3 {[%emt 0:00:00]} h5 {[%emt 0:00:00]} 31. a5 {[%emt 0:00:00]} h4 {[%emt 0:00:00]} 32. Rb1 {[%emt 0:00:00]} h3 {[%emt 0:00:00]} 33. Rxb7 {[%emt 0:00:00]} h2 {[%emt 0:00:00]} 0-1

[Event "4NCL Div 1 2018-19"]
[Site "Daventry"]
[Date "2019.01.13"]
[Round "4"]
[White "Moreby, James"]
[Black "Rees, Ioan"]
[Result "0-1"]
[ECO "D35"]
[WhiteElo "2116"]
[BlackElo "2286"]
[Annotator "NA"]
[PlyCount "66"]
[EventDate "2019.01.12"]
[EventCountry "GBR"]
[SourceTitle "playchess.com"]
[Source "ChessBase"]
[SourceQuality "1"]
[TimeControl "40"]

1. c4 {[%emt 0:00:00]} e6 {[%emt 0:00:00]} 2. Nc3 {[%emt 0:00:00]} d5 {[%emt 0:00:00]} 3. d4 {[%emt 0:00:00]} Nf6 {[%emt 0:00:00]} 4. cxd5 {[%emt 0:00:00]} exd5 {[%emt 0:00:00]} 5. Bg5 {[%emt 0:00:00]} Nbd7 {[%emt 0:00:00]} 6. e3 {[%emt 0:00:00]} Be7 {[%emt 0:00:00]} 7. Bd3 {[%emt 0:00:00]} c6 {[%emt 0:00:00]} 8. Nge2 {[%emt 0:00:00]} Ne4 {[%emt 0:00:00]} 9. Bxe7 {[%emt 0:00:00]} Qxe7 {[%emt 0:00:00]} 10. Bxe4 {[%emt 0:00:00]} dxe4 {[%emt 0:00:00]} 11. Ng3 {[%emt 0:00:00]} O-O {[%emt 0:00:00]} 12. Ngxe4 {[%emt 0:00:00]} f5 {[%emt 0:00:00]} 13. Nd2 {[%emt 0:00:00]} f4 {[%emt 0:00:00]} 14. e4 {[%emt 0:00:00]} c5 {[%emt 0:00:00]} 15. dxc5 {[%emt 0:00:00]} Ne5 {[%emt 0:00:00]} 16. Qe2 {[%emt 0:00:00]} f3 {[%emt 0:00:00]} 17. gxf3 {[%emt 0:00:00]} Qxc5 {[%emt 0:00:00]} 18. O-O-O {[%emt 0:00:00]} Be6 {[%emt 0:00:00]} 19. Kb1 {[%emt 0:00:00]} a6 {[%emt 0:00:00]} 20. Rhg1 {[%emt 0:00:00]} b5 {[%emt 0:00:00]} 21. Rg3 {[%emt 0:00:00]} Rad8 {[%emt 0:00:00]} 22. Nb3 {[%emt 0:00:00]} Rxd1+ {[%emt 0:00:00]} 23. Nxd1 {[%emt 0:00:00]} Qb4 {[%emt 0:00:00]} 24. Qd2 {[%emt 0:00:00]} Qxd2 {[%emt 0:00:00]} 25. Nxd2 {[%emt 0:00:00]} Rd8 {[%emt 0:00:00]} 26. Kc2 {[%emt 0:00:00]} Rc8+ {[%emt 0:00:00]} 27. Nc3 {[%emt 0:00:00]} b4 {[%emt 0:00:00]} 28. f4 {[%emt 0:00:00]} bxc3 {[%emt 0:00:00]} 29. fxe5 {[%emt 0:00:00]} cxd2+ {[%emt 0:00:00]} 30. Kxd2 {[%emt 0:00:00]} Bxa2 {[%emt 0:00:00]} 31. b3 {[%emt 0:00:00]} Bb1 {[%emt 0:00:00]} 32. Re3 {[%emt 0:00:00]} Rc2+ {[%emt 0:00:00]} 33. Ke1 {[%emt 0:00:00]} Kf7 {[%emt 0:00:00]} 0-1

[Event "4NCL Div 1 2018-19"]
[Site "Daventry"]
[Date "2019.01.13"]
[Round "4"]
[White "Head, Louise"]
[Black "Willow, Jonah B"]
[Result "0-1"]
[ECO "A70"]
[WhiteElo "2099"]
[BlackElo "2218"]
[Annotator "NA"]
[PlyCount "96"]
[EventDate "2019.01.12"]
[EventCountry "GBR"]
[SourceTitle "playchess.com"]
[Source "ChessBase"]
[SourceQuality "1"]
[TimeControl "40"]

1. d4 {[%emt 0:00:00]} Nf6 {[%emt 0:00:00]} 2. c4 {[%emt 0:00:00]} c5 {[%emt 0:00:00]} 3. d5 {[%emt 0:00:00]} e6 {[%emt 0:00:00]} 4. Nc3 {[%emt 0:00:00]} exd5 {[%emt 0:00:00]} 5. cxd5 {[%emt 0:00:00]} d6 {[%emt 0:00:00]} 6. e4 {[%emt 0:00:00]} g6 {[%emt 0:00:00]} 7. Bd3 {[%emt 0:00:00]} Bg7 {[%emt 0:00:00]} 8. h3 {[%emt 0:00:00]} O-O {[%emt 0:00:00]} 9. Nf3 {[%emt 0:00:00]} b5 {[%emt 0:00:00]} 10. O-O {[%emt 0:00:00]} b4 {[%emt 0:00:00]} 11. Nb1 {[%emt 0:00:00]} Re8 {[%emt 0:00:00]} 12. Nbd2 {[%emt 0:00:00]} Nbd7 {[%emt 0:00:00]} 13. Qc2 {[%emt 0:00:00]} Nb6 {[%emt 0:00:00]} 14. Re1 {[%emt 0:00:00]} a5 {[%emt 0:00:00]} 15. a4 {[%emt 0:00:00]} Qc7 {[%emt 0:00:00]} 16. Nc4 {[%emt 0:00:00]} Ba6 {[%emt 0:00:00]} 17. Rb1 {[%emt 0:00:00]} b3 {[%emt 0:00:00]} 18. Qxb3 {[%emt 0:00:00]} Nxc4 {[%emt 0:00:00]} 19. Bxc4 {[%emt 0:00:00]} Rab8 {[%emt 0:00:00]} 20. Qc2 {[%emt 0:00:00]} Bxc4 {[%emt 0:00:00]} 21. Qxc4 {[%emt 0:00:00]} Rb4 {[%emt 0:00:00]} 22. Qd3 {[%emt 0:00:00]} Rxa4 {[%emt 0:00:00]} 23. e5 {[%emt 0:00:00]} dxe5 {[%emt 0:00:00]} 24. Bd2 {[%emt 0:00:00]} Qd7 {[%emt 0:00:00]} 25. Qc2 {[%emt 0:00:00]} Nxd5 {[%emt 0:00:00]} 26. b3 {[%emt 0:00:00]} Nb4 {[%emt 0:00:00]} 27. Qxc5 {[%emt 0:00:00]} Nd3 {[%emt 0:00:00]} 28. Qe3 {[%emt 0:00:00]} Nxe1 {[%emt 0:00:00]} 29. bxa4 {[%emt 0:00:00]} Nxf3+ {[%emt 0:00:00]} 30. gxf3 {[%emt 0:00:00]} Qxa4 {[%emt 0:00:00]} 31. Bc3 {[%emt 0:00:03]} Qh4 {[%emt 0:00:00]} 32. Kg2 {[%emt 0:00:00]} e4 {[%emt 0:00:00]} 33. Bxg7 {[%emt 0:00:04]} exf3+ {[%emt 0:00:00]} 34. Qxf3 {[%emt 0:00:00]} Kxg7 {[%emt 0:00:00]} 35. Qc3+ {[%emt 0:00:00]} Kg8 {[%emt 0:00:00]} 36. Rb5 {[%emt 0:00:00]} Qe4+ {[%emt 0:00:00]} 37. Kg3 {[%emt 0:00:00]} a4 {[%emt 0:00:00]} 38. Rb4 {[%emt 0:00:00]} Qh1 {[%emt 0:00:00]} 39. Qd2 {[%emt 0:00:00]} Qc6 {[%emt 0:00:00]} 40. Qb2 {[%emt 0:00:00]} Rc8 {[%emt 0:00:00]} 41. f3 {[%emt 0:00:00]} Qc7+ {[%emt 0:00:00]} 42. Kh4 {[%emt 0:00:00]} Ra8 {[%emt 0:00:00]} 43. Qa3 {[%emt 0:00:00]} Ra5 {[%emt 0:00:00]} 44. f4 {[%emt 0:00:00]} Qe7+ {[%emt 0:00:00]} 45. Kg4 {[%emt 0:00:00]} Rb5 {[%emt 0:00:00]} 46. Rxa4 {[%emt 0:00:00]} Qe6+ {[%emt 0:00:00]} 47. f5 {[%emt 0:00:00]} h5+ {[%emt 0:00:00]} 48. Kh4 {[%emt 0:00:00]} Qe1+ {[%emt 0:00:00]} 0-1

[Event "4NCL Div 1 2018-19"]
[Site "Daventry"]
[Date "2019.01.13"]
[Round "4"]
[White "Longson, Sarah N"]
[Black "Jaracz, Barbara"]
[Result "1-0"]
[ECO "C54"]
[WhiteElo "2086"]
[BlackElo "2230"]
[Annotator "NA"]
[PlyCount "66"]
[EventDate "2019.01.12"]
[EventCountry "GBR"]
[SourceTitle "playchess.com"]
[Source "ChessBase"]
[SourceQuality "1"]
[TimeControl "40"]

1. e4 {[%emt 0:00:00]} e5 {[%emt 0:00:00]} 2. Nf3 {[%emt 0:00:00]} Nc6 {[%emt 0:00:00]} 3. Bc4 {[%emt 0:00:00]} Bc5 {[%emt 0:00:00]} 4. O-O {[%emt 0:00:00]} Nf6 {[%emt 0:00:00]} 5. d3 {[%emt 0:00:00]} d6 {[%emt 0:00:00]} 6. c3 {[%emt 0:00:00]} a6 {[%emt 0:00:00]} 7. Bb3 {[%emt 0:00:00]} Ba7 {[%emt 0:00:00]} 8. Nbd2 {[%emt 0:00:00]} h6 {[%emt 0:00:00]} 9. Re1 {[%emt 0:00:00]} O-O {[%emt 0:00:00]} 10. Nf1 {[%emt 0:00:00]} Be6 {[%emt 0:00:00]} 11. Ng3 {[%emt 0:00:00]} Qd7 {[%emt 0:00:00]} 12. h3 {[%emt 0:00:00]} Ne7 {[%emt 0:00:00]} 13. d4 {[%emt 0:00:00]} Bxb3 {[%emt 0:00:00]} 14. Qxb3 {[%emt 0:00:00]} Ng6 {[%emt 0:00:00]} 15. Be3 {[%emt 0:00:00]} exd4 {[%emt 0:00:00]} 16. cxd4 {[%emt 0:00:00]} c6 {[%emt 0:00:00]} 17. Rad1 {[%emt 0:00:00]} Rfe8 {[%emt 0:00:00]} 18. Nd2 {[%emt 0:00:00]} b5 {[%emt 0:00:00]} 19. f4 {[%emt 0:00:00]} c5 {[%emt 0:00:00]} 20. dxc5 {[%emt 0:00:00]} dxc5 {[%emt 0:00:00]} 21. Qc3 {[%emt 0:00:00]} Qc7 {[%emt 0:00:00]} 22. Nf5 {[%emt 0:00:00]} b4 {[%emt 0:00:00]} 23. Qc4 {[%emt 0:00:00]} Qc6 {[%emt 0:00:00]} 24. e5 {[%emt 0:00:00]} Nd5 {[%emt 0:00:00]} 25. Nd6 {[%emt 0:00:00]} Re7 {[%emt 0:00:00]} 26. Nb3 {[%emt 0:00:00]} Nxe3 {[%emt 0:00:00]} 27. Rxe3 {[%emt 0:00:00]} Bb6 {[%emt 0:00:00]} 28. Rg3 {[%emt 0:00:00]} Kh7 {[%emt 0:00:00]} 29. Nxf7 {[%emt 0:00:00]} Rxf7 {[%emt 0:00:00]} 30. Qxf7 {[%emt 0:00:00]} c4+ {[%emt 0:00:00]} 31. Kh2 {[%emt 0:00:00]} Ra7 {[%emt 0:00:00]} 32. Qf5 {[%emt 0:00:00]} cxb3 {[%emt 0:00:00]} 33. axb3 {[%emt 0:00:00]} Bc5 {[%emt 0:00:00]} 1-0

[Event "4NCL Div 1 2018-19"]
[Site "Daventry"]
[Date "2019.01.13"]
[Round "4"]
[White "Norinkeviciute, Rasa"]
[Black "Dong, Bao Nghia"]
[Result "1/2-1/2"]
[ECO "D30"]
[WhiteElo "2028"]
[BlackElo "2163"]
[Annotator "NA"]
[PlyCount "205"]
[EventDate "2019.01.12"]
[EventCountry "GBR"]
[SourceTitle "playchess.com"]
[Source "ChessBase"]
[SourceQuality "1"]
[TimeControl "40"]

1. c4 {[%emt 0:00:00]} e6 {[%emt 0:00:00]} 2. Nf3 {[%emt 0:00:00]} a6 {[%emt 0:00:00]} 3. d4 {[%emt 0:00:00]} d5 {[%emt 0:00:00]} 4. e3 {[%emt 0:00:00]} Nf6 {[%emt 0:00:00]} 5. a3 {[%emt 0:00:00]} dxc4 {[%emt 0:00:00]} 6. Bxc4 {[%emt 0:00:00]} b5 {[%emt 0:00:00]} 7. Be2 {[%emt 0:00:00]} c5 {[%emt 0:00:00]} 8. O-O {[%emt 0:00:00]} Nc6 {[%emt 0:00:00]} 9. dxc5 {[%emt 0:00:00]} Bxc5 {[%emt 0:00:00]} 10. Qc2 {[%emt 0:00:00]} Qb6 {[%emt 0:00:00]} 11. b4 {[%emt 0:00:00]} Be7 {[%emt 0:00:00]} 12. Bb2 {[%emt 0:00:00]} Bb7 {[%emt 0:00:00]} 13. Nbd2 {[%emt 0:00:00]} Rc8 {[%emt 0:00:00]} 14. Qb3 {[%emt 0:00:00]} O-O {[%emt 0:00:00]} 15. Rac1 {[%emt 0:00:00]} Rfd8 {[%emt 0:00:00]} 16. Rfd1 {[%emt 0:00:00]} h6 {[%emt 0:00:00]} 17. h3 {[%emt 0:00:00]} Qa7 {[%emt 0:00:00]} 18. Nf1 {[%emt 0:00:00]} Ne4 {[%emt 0:00:00]} 19. Rxd8+ {[%emt 0:00:00]} Rxd8 {[%emt 0:00:00]} 20. Rd1 {[%emt 0:00:00]} Qa8 {[%emt 0:00:00]} 21. Rxd8+ {[%emt 0:00:00]} Bxd8 {[%emt 0:00:00]} 22. Qd3 {[%emt 0:00:00]} Ne7 {[%emt 0:00:00]} 23. N1d2 {[%emt 0:00:00]} Nf5 {[%emt 0:00:00]} 24. Nxe4 {[%emt 0:00:00]} Bxe4 {[%emt 0:00:00]} 25. Qd2 {[%emt 0:00:00]} Bb6 {[%emt 0:00:00]} 26. Qc3 {[%emt 0:00:00]} f6 {[%emt 0:00:00]} 27. Qb3 {[%emt 0:00:00]} Bd5 {[%emt 0:00:00]} 28. Qd1 {[%emt 0:00:00]} e5 {[%emt 0:00:00]} 29. Qc2 {[%emt 0:00:00]} Nd6 {[%emt 0:00:00]} 30. Ne1 {[%emt 0:00:00]} Qa7 {[%emt 0:00:00]} 31. Qd2 {[%emt 0:00:00]} Qb7 {[%emt 0:00:00]} 32. Qc2 {[%emt 0:00:00]} Qd7 {[%emt 0:00:00]} 33. Bg4 {[%emt 0:00:00]} f5 {[%emt 0:00:00]} 34. Be2 {[%emt 0:00:00]} e4 {[%emt 0:00:00]} 35. Qc3 {[%emt 0:00:00]} Bc4 {[%emt 0:00:00]} 36. Bh5 {[%emt 0:00:00]} f4 {[%emt 0:00:00]} 37. Nc2 {[%emt 0:00:00]} Bd3 {[%emt 0:00:00]} 38. exf4 {[%emt 0:00:00]} Nc4 {[%emt 0:00:00]} 39. Bg4 {[%emt 0:00:00]} Qa7 {[%emt 0:00:00]} 40. Be6+ {[%emt 0:00:00]} Kh8 {[%emt 0:00:00]} 41. Nd4 {[%emt 0:00:00]} Kh7 {[%emt 0:00:00]} 42. Ba1 {[%emt 0:00:00]} Nd6 {[%emt 0:00:00]} 43. Kh1 {[%emt 0:00:00]} Bc4 {[%emt 0:00:00]} 44. Bf5+ {[%emt 0:00:00]} Nxf5 {[%emt 0:00:00]} 45. Nxf5 {[%emt 0:00:00]} Bxf2 {[%emt 0:00:00]} 46. Nxg7 {[%emt 0:00:00]} Qe3 {[%emt 0:00:00]} 47. Nf5 {[%emt 0:00:00]} Qe1+ {[%emt 0:00:00]} 48. Qxe1 {[%emt 0:00:00]} Bxe1 {[%emt 0:00:00]} 49. Bd4 {[%emt 0:00:00]} Be6 {[%emt 0:00:00]} 50. Ne3 {[%emt 0:00:00]} Bd2 {[%emt 0:00:00]} 51. Kg1 {[%emt 0:00:00]} Bb3 {[%emt 0:00:00]} 52. Kf2 {[%emt 0:00:00]} Bc1 {[%emt 0:00:00]} 53. Ke2 {[%emt 0:00:00]} Bxa3 {[%emt 0:00:00]} 54. Bc3 {[%emt 0:00:00]} Bc1 {[%emt 0:00:00]} 55. g3 {[%emt 0:00:00]} Kg6 {[%emt 0:00:00]} 56. Be5 {[%emt 0:00:00]} Kf7 {[%emt 0:00:00]} 57. Bc3 {[%emt 0:00:00]} Ke6 {[%emt 0:00:00]} 58. Ng4 {[%emt 0:00:00]} h5 {[%emt 0:00:00]} 59. Ne3 {[%emt 0:00:00]} Bc4+ {[%emt 0:00:00]} 60. Kf2 {[%emt 0:00:00]} Bd3 {[%emt 0:00:00]} 61. g4 {[%emt 0:00:00]} hxg4 {[%emt 0:00:00]} 62. hxg4 {[%emt 0:00:00]} Ba3 {[%emt 0:00:00]} 63. Ke1 {[%emt 0:00:00]} a5 {[%emt 0:00:00]} 64. bxa5 {[%emt 0:00:00]} b4 {[%emt 0:00:00]} 65. Bd4 {[%emt 0:00:01]} b3 {[%emt 0:00:00]} 66. Nd1 {[%emt 0:00:00]} Bb4+ {[%emt 0:00:00]} 67. Kf2 {[%emt 0:00:00]} Bxa5 {[%emt 0:00:00]} 68. Ke3 {[%emt 0:00:00]} Kd5 {[%emt 0:00:00]} 69. Nc3+ {[%emt 0:00:00]} Kc4 {[%emt 0:00:00]} 70. Nd1 {[%emt 0:00:05]} Bc2 {[%emt 0:00:00]} 71. Nb2+ {[%emt 0:00:00]} Kd5 {[%emt 0:00:00]} 72. Bf6 {[%emt 0:00:00]} Bb6+ {[%emt 0:00:00]} 73. Ke2 {[%emt 0:00:00]} e3 {[%emt 0:00:00]} 74. Na4 {[%emt 0:00:00]} Ba7 {[%emt 0:00:00]} 75. f5 {[%emt 0:00:00]} Bd4 {[%emt 0:00:00]} 76. Nc3+ {[%emt 0:00:00]} Kc4 {[%emt 0:00:00]} 77. Bxd4 {[%emt 0:00:00]} Kxd4 {[%emt 0:00:00]} 78. Na4 {[%emt 0:00:00]} Bd3+ {[%emt 0:00:00]} 79. Ke1 {[%emt 0:00:00]} Bb5 {[%emt 0:00:00]} 80. Nb2 {[%emt 0:00:00]} Ke5 {[%emt 0:00:00]} 81. Nd1 {[%emt 0:00:00]} Kf6 {[%emt 0:00:00]} 82. Nxe3 {[%emt 0:00:00]} b2 {[%emt 0:00:00]} 83. Nd5+ {[%emt 0:00:00]} Ke5 {[%emt 0:00:00]} 84. Nc3 {[%emt 0:00:00]} Bd3 {[%emt 0:00:00]} 85. Kd2 {[%emt 0:00:00]} Kd4 {[%emt 0:00:00]} 86. f6 {[%emt 0:00:00]} Bg6 {[%emt 0:00:00]} 87. Nb5+ {[%emt 0:00:00]} Kc4 {[%emt 0:00:00]} 88. Nc3 {[%emt 0:00:00]} Kb3 {[%emt 0:00:00]} 89. g5 {[%emt 0:00:00]} Bh5 {[%emt 0:00:00]} 90. Kd3 {[%emt 0:00:00]} Bf7 {[%emt 0:00:00]} 91. Kd2 {[%emt 0:00:00]} Bg6 {[%emt 0:00:00]} 92. Nb1 {[%emt 0:00:00]} Ka2 {[%emt 0:00:00]} 93. Nc3+ {[%emt 0:00:00]} Kb3 {[%emt 0:00:00]} 94. Nb1 {[%emt 0:00:00]} Ka2 {[%emt 0:00:00]} 95. Nc3+ {[%emt 0:00:00]} Ka3 {[%emt 0:00:00]} 96. Nb5+ {[%emt 0:00:00]} Kb4 {[%emt 0:00:00]} 97. Nc3 {[%emt 0:00:00]} Kc4 {[%emt 0:00:00]} 98. f7 {[%emt 0:00:00]} Bxf7 {[%emt 0:00:00]} 99. Kc2 {[%emt 0:00:00]} b1=Q+ {[%emt 0:00:00]} 100. Nxb1 {[%emt 0:00:00]} Bg6+ {[%emt 0:00:00]} 101. Kc1 {[%emt 0:00:00]} Bxb1 {[%emt 0:00:00]} 102. Kxb1 {[%emt 0:00:00]} Kd5 {[%emt 0:00:00]} 103. g6 {[%emt 0:00:00]} 1/2-1/2

[Event "4NCL Div 1 2018-19"]
[Site "Daventry"]
[Date "2019.01.13"]
[Round "4"]
[White "Skulte, Christopher"]
[Black "Golding, Alex"]
[Result "1/2-1/2"]
[ECO "B28"]
[WhiteElo "1982"]
[BlackElo "2264"]
[Annotator "NA"]
[PlyCount "63"]
[EventDate "2019.01.12"]
[EventCountry "GBR"]
[SourceTitle "playchess.com"]
[Source "ChessBase"]
[SourceQuality "1"]
[TimeControl "40"]

1. e4 {[%emt 0:00:00]} c5 {[%emt 0:00:00]} 2. Nf3 {[%emt 0:00:00]} a6 {[%emt 0:00:00]} 3. d4 {[%emt 0:00:00]} cxd4 {[%emt 0:00:00]} 4. Nxd4 {[%emt 0:00:00]} e5 {[%emt 0:00:00]} 5. Nf3 {[%emt 0:00:00]} Nf6 {[%emt 0:00:00]} 6. Bc4 {[%emt 0:00:00]} Qc7 {[%emt 0:00:00]} 7. Qe2 {[%emt 0:00:00]} Bc5 {[%emt 0:00:00]} 8. Bg5 {[%emt 0:00:00]} Ng4 {[%emt 0:00:00]} 9. Bh4 {[%emt 0:00:00]} d6 {[%emt 0:00:00]} 10. h3 {[%emt 0:00:00]} Nh6 {[%emt 0:00:00]} 11. Bg5 {[%emt 0:00:00]} Be6 {[%emt 0:00:00]} 12. Nbd2 {[%emt 0:00:00]} Nc6 {[%emt 0:00:00]} 13. O-O-O {[%emt 0:00:00]} Na5 {[%emt 0:00:00]} 14. Kb1 {[%emt 0:00:00]} Nxc4 {[%emt 0:00:00]} 15. Nxc4 {[%emt 0:00:00]} f5 {[%emt 0:00:00]} 16. Bxh6 {[%emt 0:00:00]} gxh6 {[%emt 0:00:00]} 17. exf5 {[%emt 0:00:00]} Bxf5 {[%emt 0:00:00]} 18. Nd4 {[%emt 0:00:00]} Bxd4 {[%emt 0:00:00]} 19. Rxd4 {[%emt 0:00:00]} O-O-O {[%emt 0:00:00]} 20. Nxe5 {[%emt 0:00:00]} Qxc2+ {[%emt 0:00:00]} 21. Qxc2+ {[%emt 0:00:00]} Bxc2+ {[%emt 0:00:00]} 22. Kxc2 {[%emt 0:00:00]} dxe5 {[%emt 0:00:00]} 23. Rxd8+ {[%emt 0:00:00]} Kxd8 {[%emt 0:00:00]} 24. Re1 {[%emt 0:00:00]} Rf8 {[%emt 0:00:00]} 25. f3 {[%emt 0:00:00]} Rg8 {[%emt 0:00:00]} 26. g4 {[%emt 0:00:00]} Rf8 {[%emt 0:00:00]} 27. Re3 {[%emt 0:00:00]} Kd7 {[%emt 0:00:00]} 28. Kd2 {[%emt 0:00:00]} Kd6 {[%emt 0:00:00]} 29. Rc3 {[%emt 0:00:00]} h5 {[%emt 0:00:00]} 30. Ke3 {[%emt 0:00:00]} hxg4 {[%emt 0:00:00]} 31. hxg4 {[%emt 0:00:00]} Rf7 {[%emt 0:00:00]} 32. Rc8 {[%emt 0:00:00]} 1/2-1/2

[Event "4NCL Div 1 2018-19"]
[Site "Daventry"]
[Date "2019.01.13"]
[Round "4"]
[White "Smith, Lynda"]
[Black "Camp, Imogen A L"]
[Result "1/2-1/2"]
[ECO "C68"]
[WhiteElo "1837"]
[BlackElo "1917"]
[Annotator "NA"]
[PlyCount "74"]
[EventDate "2019.01.12"]
[EventCountry "GBR"]
[SourceTitle "playchess.com"]
[Source "ChessBase"]
[SourceQuality "1"]
[TimeControl "40"]

1. e4 {[%emt 0:00:00]} e5 {[%emt 0:00:00]} 2. Nf3 {[%emt 0:00:00]} Nc6 {[%emt 0:00:00]} 3. Bb5 {[%emt 0:00:00]} a6 {[%emt 0:00:00]} 4. Bxc6 {[%emt 0:00:00]} dxc6 {[%emt 0:00:00]} 5. d4 {[%emt 0:00:00]} exd4 {[%emt 0:00:00]} 6. Qxd4 {[%emt 0:00:00]} Qxd4 {[%emt 0:00:00]} 7. Nxd4 {[%emt 0:00:00]} Bc5 {[%emt 0:00:00]} 8. Be3 {[%emt 0:00:00]} Nf6 {[%emt 0:00:00]} 9. f3 {[%emt 0:00:00]} Bd7 {[%emt 0:00:00]} 10. Kf2 {[%emt 0:00:00]} O-O-O {[%emt 0:00:00]} 11. Nc3 {[%emt 0:00:00]} Rhe8 {[%emt 0:00:00]} 12. Rad1 {[%emt 0:00:00]} Ng8 {[%emt 0:00:00]} 13. Nf5 {[%emt 0:00:00]} Bxe3+ {[%emt 0:00:00]} 14. Nxe3 {[%emt 0:00:00]} Ne7 {[%emt 0:00:00]} 15. g4 {[%emt 0:00:00]} g6 {[%emt 0:00:00]} 16. g5 {[%emt 0:00:00]} Be6 {[%emt 0:00:00]} 17. a3 {[%emt 0:00:00]} Rxd1 {[%emt 0:00:00]} 18. Ncxd1 {[%emt 0:00:00]} h5 {[%emt 0:00:00]} 19. gxh6 {[%emt 0:00:00]} Rh8 {[%emt 0:00:00]} 20. Ke2 {[%emt 0:00:00]} Rxh6 {[%emt 0:00:00]} 21. Ng4 {[%emt 0:00:00]} Bxg4 {[%emt 0:00:00]} 22. fxg4 {[%emt 0:00:00]} g5 {[%emt 0:00:00]} 23. Nf2 {[%emt 0:00:00]} Ng6 {[%emt 0:00:00]} 24. Nd3 {[%emt 0:00:00]} b6 {[%emt 0:00:00]} 25. h3 {[%emt 0:00:00]} Kd7 {[%emt 0:00:00]} 26. Rf1 {[%emt 0:00:00]} Ke6 {[%emt 0:00:00]} 27. Rf3 {[%emt 0:00:00]} c5 {[%emt 0:00:00]} 28. c4 {[%emt 0:00:00]} a5 {[%emt 0:00:00]} 29. a4 {[%emt 0:00:00]} f6 {[%emt 0:00:00]} 30. Ke3 {[%emt 0:00:00]} Rh8 {[%emt 0:00:00]} 31. b3 {[%emt 0:00:00]} Rd8 {[%emt 0:00:00]} 32. Rf2 {[%emt 0:00:00]} Ne7 {[%emt 0:00:00]} 33. Rh2 {[%emt 0:00:00]} Rh8 {[%emt 0:00:00]} 34. Ne1 {[%emt 0:00:00]} Nc6 {[%emt 0:00:00]} 35. Nf3 {[%emt 0:00:00]} Ne5 {[%emt 0:00:00]} 36. Nxe5 {[%emt 0:00:00]} Kxe5 {[%emt 0:00:00]} 37. Rh1 {[%emt 0:00:00]} Rh7 {[%emt 0:00:15]} 1/2-1/2

[Event "4NCL Div 1 2018-19"]
[Site "Daventry"]
[Date "2019.01.13"]
[Round "4"]
[White "Milewska, Agnieszka"]
[Black "Roy, Ali"]
[Result "1/2-1/2"]
[ECO "D32"]
[WhiteElo "1648"]
[BlackElo "1897"]
[Annotator "NA"]
[PlyCount "94"]
[EventDate "2019.01.12"]
[EventCountry "GBR"]
[SourceTitle "playchess.com"]
[Source "ChessBase"]
[SourceQuality "1"]
[TimeControl "40"]

1. d4 {[%emt 0:00:00]} d5 {[%emt 0:00:00]} 2. e3 {[%emt 0:00:00]} Nf6 {[%emt 0:00:00]} 3. c4 {[%emt 0:00:00]} e6 {[%emt 0:00:00]} 4. Nc3 {[%emt 0:00:00]} Be7 {[%emt 0:00:00]} 5. Nf3 {[%emt 0:00:00]} O-O {[%emt 0:00:00]} 6. cxd5 {[%emt 0:00:00]} exd5 {[%emt 0:00:00]} 7. Be2 {[%emt 0:00:00]} c5 {[%emt 0:00:00]} 8. dxc5 {[%emt 0:00:00]} Bxc5 {[%emt 0:00:00]} 9. O-O {[%emt 0:00:00]} Nc6 {[%emt 0:00:00]} 10. b3 {[%emt 0:00:00]} Bg4 {[%emt 0:00:00]} 11. Bb2 {[%emt 0:00:00]} Qd7 {[%emt 0:00:00]} 12. Rc1 {[%emt 0:00:00]} Be7 {[%emt 0:00:00]} 13. Nb5 {[%emt 0:00:00]} Rac8 {[%emt 0:00:00]} 14. Nbd4 {[%emt 0:00:00]} Nxd4 {[%emt 0:00:00]} 15. Qxd4 {[%emt 0:00:00]} Bxf3 {[%emt 0:00:00]} 16. Bxf3 {[%emt 0:00:00]} b6 {[%emt 0:00:00]} 17. Rxc8 {[%emt 0:00:00]} Rxc8 {[%emt 0:00:00]} 18. h3 {[%emt 0:00:00]} Bc5 {[%emt 0:00:00]} 19. Qh4 {[%emt 0:00:00]} Be7 {[%emt 0:00:00]} 20. Rd1 {[%emt 0:00:00]} Rc2 {[%emt 0:00:00]} 21. Bxf6 {[%emt 0:00:00]} Bxf6 {[%emt 0:00:00]} 22. Qg3 {[%emt 0:00:00]} Qc8 {[%emt 0:00:00]} 23. a4 {[%emt 0:00:00]} Qc7 {[%emt 0:00:00]} 24. Qxc7 {[%emt 0:00:00]} Rxc7 {[%emt 0:00:00]} 25. Bxd5 {[%emt 0:00:00]} Kf8 {[%emt 0:00:00]} 26. Bc4 {[%emt 0:00:00]} Bc3 {[%emt 0:00:00]} 27. f4 {[%emt 0:00:00]} Ke7 {[%emt 0:00:00]} 28. Kf2 {[%emt 0:00:00]} f6 {[%emt 0:00:00]} 29. g4 {[%emt 0:00:00]} g5 {[%emt 0:00:00]} 30. fxg5 {[%emt 0:00:00]} fxg5 {[%emt 0:00:00]} 31. Rd5 {[%emt 0:00:00]} h6 {[%emt 0:00:00]} 32. Rf5 {[%emt 0:00:00]} Kd6 {[%emt 0:00:00]} 33. Ke2 {[%emt 0:00:00]} a5 {[%emt 0:00:00]} 34. Kd3 {[%emt 0:00:00]} Be5 {[%emt 0:00:00]} 35. Rf7 {[%emt 0:00:00]} Rxf7 {[%emt 0:00:00]} 36. Bxf7 {[%emt 0:00:00]} Ke7 {[%emt 0:00:00]} 37. Ke4 {[%emt 0:00:00]} Bd6 {[%emt 0:00:00]} 38. Bc4 {[%emt 0:00:00]} Kf6 {[%emt 0:00:00]} 39. Kd5 {[%emt 0:00:00]} Bb4 {[%emt 0:00:00]} 40. Bd3 {[%emt 0:00:00]} Bd2 {[%emt 0:00:00]} 41. e4 {[%emt 0:00:00]} Bc3 {[%emt 0:00:00]} 42. Bb5 {[%emt 0:00:00]} Be5 {[%emt 0:00:00]} 43. Bd7 {[%emt 0:00:00]} Bc3 {[%emt 0:00:00]} 44. Bf5 {[%emt 0:00:00]} Be5 {[%emt 0:00:00]} 45. Kc6 {[%emt 0:00:00]} Bd4 {[%emt 0:00:00]} 46. Kd7 {[%emt 0:00:00]} Bc5 {[%emt 0:00:00]} 47. Ke8 {[%emt 0:00:00]} Bb4 {[%emt 0:00:00]} 1/2-1/2